bitfinex/quotes_BTCUSD_20230831
["timestamp","ask_amount","ask_price","bid_price","bid_amount"]
[1693503028013,0.02,26407.0,26400.0,0.2524]
[1693503028219,2.272304,26405.0,26401.0,0.36768085]
[1693503028424,0.1148,26403.0,26401.0,0.36768085]
[1693503028635,1.136276,26402.0,26401.0,0.36768085]
[1693503030005,1.704414,26402.0,26400.0,0.2524]
[1693503030230,1.707414,26402.0,26401.0,0.057]
[1693503030437,1.710414,26402.0,26401.0,0.094]
[1693503030650,1.142276,26402.0,26401.0,0.094]
[1693503030852,0.571138,26402.0,26401.0,0.05726559]
[1693503031063,0.003,26402.0,26401.0,0.42494644]
[1693503031283,0.571138,26402.0,26401.0,0.42494644]
[1693503031495,1.139276,26402.0,26401.0,0.05726559]
[1693503032115,1.142276,26402.0,26401.0,0.05726559]
[1693503032559,0.006,26402.0,26401.0,0.50564644]
[1693503032766,0.006,26402.0,26401.0,1.64400644]
[1693503032767,0.003,26402.0,26401.0,1.64400644]
[1693503032970,0.006,26402.0,26401.0,1.68736644]
[1693503033176,0.006,26402.0,26401.0,2.28960644]
[1693503033380,0.006,26402.0,26401.0,2.57546644]
[1693503033609,0.006,26402.0,26401.0,2.57210644]
[1693503033817,0.006,26402.0,26401.0,2.96366644]
[1693503034047,0.006,26402.0,26401.0,3.35986644]
[1693503034329,0.567947,26411.0,26403.0,0.4584]
[1693503034531,0.567947,26411.0,26405.0,2.387037]
[1693503034733,1.250694,26411.0,26406.0,0.53475319]
[1693503034957,1.250694,26411.0,26407.0,1.136041]
[1693503035159,1.250694,26411.0,26408.0,0.38768085]
[1693503035385,1.818641,26411.0,26408.0,0.38768085]
[1693503035593,0.1148,26409.0,26408.0,0.38768085]
[1693503035795,1.250776,26409.0,26408.0,0.38768085]
[1693503037023,1.257776,26409.0,26408.0,0.38768085]
[1693503037234,0.689788,26409.0,26408.0,0.45236085]
[1693503037447,0.689788,26409.0,26408.0,1.59497885]
[1693503037448,0.007,26409.0,26408.0,1.59497885]
[1693503037662,0.007,26409.0,26408.0,1.62467885]
[1693503037900,0.007,26409.0,26408.0,1.62371885]
[1693503038105,0.007,26409.0,26408.0,1.62323885]
[1693503038311,1.135901,26411.0,26408.0,1.04262985]
[1693503038525,0.007,26409.0,26408.0,1.03122985]
[1693503038731,0.007,26409.0,26408.0,0.38768085]
[1693503038942,0.574988,26409.0,26408.0,0.38794378]
[1693503039172,0.574988,26409.0,26408.0,0.02026293]
[1693503039173,1.818764,26409.0,26408.0,0.02026293]
[1693503039381,1.250776,26409.0,26408.0,0.02026293]
[1693503042206,0.1148,26409.0,26408.0,0.38794378]
[1693503042415,0.567971,26410.0,26408.0,0.46642378]
[1693503042621,0.56791,26413.0,26409.0,0.36768085]
[1693503042829,1.135828,26413.0,26410.0,0.16707234]
[1693503043034,1.70375,26413.0,26411.0,0.36768085]
[1693503043263,1.70375,26413.0,26412.0,0.02]
[1693503043465,1.91316425,26413.0,26412.0,0.38768085]
[1693503045665,1.91316425,26413.0,26412.0,0.38968085]
[1693503045835,1.92016425,26413.0,26412.0,0.39168085]
[1693503046582,1.92016425,26413.0,26412.0,0.024]
[1693503046999,1.92016425,26413.0,26412.0,0.00426141]
[1693503048050,2.00998801,26413.0,26412.0,0.00426141]
[1693503048633,1.92016425,26413.0,26412.0,0.00426141]
[1693503049639,2.32455453,26413.0,26412.0,0.00426141]
[1693503050063,2.32455453,26413.0,26412.0,0.004]
[1693503050198,2.00998801,26413.0,26412.0,0.004]
[1693503051955,2.14472366,26413.0,26412.0,0.004]
[1693503052601,2.0548999,26413.0,26412.0,0.004]
[1693503053958,2.23454743,26413.0,26412.0,0.004]
[1693503054206,2.66172933,26413.0,26412.0,0.004]
[1693503054813,2.52699368,26413.0,26412.0,0.004]
[1693503056416,2.15920464,26413.0,26412.0,0.004]
[1693503056775,2.38376405,26413.0,26412.0,0.004]
[1693503057836,2.38383021,26413.0,26412.0,0.004]
[1693503058037,2.20411652,26413.0,26412.0,0.004]
[1693503058777,1.97955711,26413.0,26412.0,0.004]
[1693503059037,2.34734615,26413.0,26412.0,0.004]
[1693503060692,1.97955711,26413.0,26412.0,0.004]
[1693503061972,2.24902841,26413.0,26412.0,0.004]
[1693503063020,2.36902841,26413.0,26412.0,0.004]
[1693503063352,0.16,26411.0,26404.0,0.07422]
[1693503063560,0.22470993,26407.0,26405.0,0.2749]
[1693503063760,0.22470993,26407.0,26401.0,0.03056787]
[1693503063761,1.250904,26406.0,26402.0,0.07626]
[1693503063985,1.250904,26406.0,26405.0,0.00025165]
[1693503063986,1.136104,26406.0,26405.0,0.00025165]
[1693503064199,1.250904,26406.0,26405.0,0.00025165]
[1693503064622,1.34078797,26406.0,26405.0,0.00025165]
[1693503064892,1.34078797,26406.0,26405.0,0.016]
[1693503065120,1.53958564,26406.0,26405.0,0.034]
[1693503065526,2.10963764,26406.0,26405.0,0.063]
[1693503065710,1.91383997,26406.0,26405.0,0.063]
[1693503065866,1.91383997,26406.0,26405.0,0.06325165]
[1693503067498,2.14348348,26406.0,26405.0,0.06325165]
[1693503067897,2.14348348,26406.0,26405.0,0.063]
[1693503068095,2.51127252,26406.0,26405.0,0.063]
[1693503068482,2.50827252,26406.0,26405.0,0.029]
[1693503068680,2.50627252,26406.0,26400.0,0.2577]
[1693503068883,1.81928,26401.0,26400.0,0.2577]
[1693503069904,1.81928,26401.0,26400.0,0.25794166]
[1693503070158,1.95691108,26401.0,26400.0,0.25794166]
[1693503070573,1.95991108,26401.0,26400.0,0.29494166]
[1693503071411,1.95991108,26401.0,26400.0,0.29694166]
[1693503071617,2.04977268,26401.0,26400.0,0.29494166]
[1693503071820,1.95991108,26401.0,26400.0,0.29494166]
[1693503072020,1.96291108,26401.0,26400.0,0.33194166]
[1693503073924,1.96291108,26401.0,26400.0,0.3317]
[1693503075727,1.95991108,26401.0,26400.0,0.2947]
[1693503076120,1.96191108,26401.0,26400.0,0.3167]
[1693503076300,1.95891108,26401.0,26400.0,0.2797]
[1693503076517,1.95791108,26401.0,26400.0,0.2747]
[1693503076950,1.95991108,26401.0,26400.0,0.2967]
[1693503077861,1.82228,26401.0,26400.0,0.29694166]
[1693503078067,1.82228,26401.0,26400.0,0.38310166]
[1693503078068,0.003,26401.0,26400.0,0.38310166]
[1693503078277,0.57116,26401.0,26400.0,0.38450166]
[1693503078478,0.57116,26401.0,26400.0,0.38342166]
[1693503078700,0.57116,26401.0,26400.0,0.38324166]
[1693503078905,0.57116,26401.0,26400.0,0.38138166]
[1693503079114,0.57116,26401.0,26400.0,0.31694166]
[1693503079313,1.13932,26401.0,26400.0,0.31694166]
[1693503079728,1.3215474,26401.0,26400.0,0.31694166]
[1693503080635,0.57116,26401.0,26400.0,0.31694166]
[1693503080842,0.57116,26401.0,26400.0,0.38078166]
[1693503081053,0.57116,26401.0,26400.0,0.39284166]
[1693503081488,0.003,26401.0,26400.0,1.34256351]
[1693503081694,0.003,26401.0,26400.0,1.32672351]
[1693503081929,0.003,26401.0,26400.0,1.32014351]
[1693503082120,0.003,26401.0,26400.0,0.74800251]
[1693503082501,0.003,26401.0,26400.0,0.74704251]
[1693503082654,0.003,26401.0,26400.0,0.74872251]
[1693503082869,0.003,26401.0,26400.0,0.75598251]
[1693503083065,0.003,26401.0,26400.0,0.75304251]
[1693503083295,0.003,26401.0,26400.0,0.75556251]
[1693503083495,0.003,26401.0,26400.0,0.75370251]
[1693503083694,0.003,26401.0,26400.0,0.75340251]
[1693503083924,0.57116,26401.0,26400.0,0.74734251]
[1693503084124,0.57116,26401.0,26400.0,0.74836251]
[1693503084329,0.57116,26401.0,26400.0,0.74764251]
[1693503084536,0.57116,26401.0,26400.0,0.74866251]
[1693503084765,0.57116,26401.0,26400.0,0.74734251]
[1693503085001,0.57116,26401.0,26400.0,0.74566251]
[1693503085200,0.57116,26401.0,26400.0,0.74560251]
[1693503085411,0.57116,26401.0,26400.0,0.74512251]
[1693503085618,0.57116,26401.0,26400.0,0.74656251]
[1693503085819,0.7533826,26401.0,26400.0,0.74722251]
[1693503086029,0.7533826,26401.0,26400.0,0.74728251]
[1693503086236,0.7533826,26401.0,26400.0,0.74872251]
[1693503086442,0.7533826,26401.0,26400.0,0.74638251]
[1693503086648,0.7533826,26401.0,26400.0,0.74566251]
[1693503086856,0.7533826,26401.0,26400.0,0.74554251]
[1693503087066,1.82228,26401.0,26400.0,0.30694166]
[1693503087283,1.82228,26401.0,26400.0,0.28694166]
[1693503087941,1.82228,26401.0,26400.0,0.03924166]
[1693503088184,2.071322,26401.0,26400.0,0.03924166]
[1693503088403,2.061322,26401.0,26400.0,0.03924166]
[1693503089447,1.81228,26401.0,26400.0,0.03924166]
[1693503090061,1.81228,26401.0,26400.0,0.039]
[1693503090995,1.80228,26401.0,26400.0,0.039]
[1693503091205,2.16996085,26401.0,26400.0,0.039]
[1693503091482,2.35559483,26401.0,26400.0,0.039]
[1693503091691,2.74338387,26401.0,26400.0,0.039]
[1693503091896,2.74338387,26401.0,26399.0,0.020402]
[1693503091897,0.2748,26400.0,26399.0,0.020402]
[1693503092103,2.85759623,26400.0,26399.0,0.020402]
[1693503094067,2.79759623,26400.0,26399.0,0.020402]
[1693503094285,2.86959623,26400.0,26399.0,0.026402]
[1693503094662,3.23738527,26400.0,26399.0,0.026402]
[1693503095032,2.56959623,26400.0,26399.0,0.026402]
[1693503095530,2.92959623,26400.0,26399.0,0.026402]
[1693503098013,2.92959623,26400.0,26399.0,0.020402]
[1693503098014,2.85759623,26400.0,26399.0,0.020402]
[1693503098165,2.89359623,26400.0,26399.0,0.021402]
[1693503098495,2.89359623,26400.0,26399.0,0.023402]
[1693503098496,3.29738527,26400.0,26399.0,0.023402]
[1693503098641,3.26138527,26400.0,26399.0,0.022402]
[1693503098849,3.3354908,26400.0,26399.0,0.023402]
[1693503100447,0.16,26398.0,26397.0,0.020402]
[1693503100640,3.54892593,26398.0,26397.0,0.020402]
[1693503101370,3.64479659,26398.0,26397.0,0.020402]
[1693503101593,3.81155459,26398.0,26397.0,0.021402]
[1693503102450,3.82655459,26398.0,26397.0,0.021402]
[1693503103641,3.82655459,26398.0,26397.0,0.020402]
[1693503103795,3.79655459,26398.0,26397.0,0.020402]
[1693503103998,3.85155459,26398.0,26397.0,0.020402]
[1693503107309,4.00446012,26398.0,26397.0,0.020402]
[1693503108031,0.06,26396.0,26392.0,0.2614]
[1693503108281,0.06,26396.0,26389.0,0.020402]
[1693503108282,0.1148,26393.0,26389.0,0.020402]
[1693503108526,1.705074,26392.0,26390.0,0.2561]
[1693503108773,0.1148,26391.0,26390.0,0.2561]
[1693503109013,1.819925,26391.0,26390.0,0.2561]
[1693503110780,1.819925,26391.0,26390.0,0.2511]
[1693503111212,1.827925,26391.0,26390.0,0.2511]
[1693503113414,1.822925,26391.0,26390.0,0.2511]
[1693503113617,2.15341784,26391.0,26390.0,0.2511]
[1693503114121,1.822925,26391.0,26390.0,0.2511]
[1693503114563,1.88236604,26391.0,26390.0,0.2511]
[1693503116110,3.88236604,26391.0,26390.0,0.2511]
[1693503117998,3.87436604,26391.0,26390.0,0.2511]
[1693503118403,3.87836604,26391.0,26390.0,0.2511]
[1693503118598,4.24615508,26391.0,26390.0,0.2511]
[1693503119655,4.24415508,26391.0,26390.0,0.2511]
[1693503120368,4.24615508,26391.0,26390.0,0.2511]
[1693503120995,4.61383593,26391.0,26390.0,0.2511]
[1693503121198,4.67383593,26391.0,26390.0,0.2511]
[1693503121627,4.93576881,26391.0,26390.0,0.2511]
[1693503121837,4.83933593,26391.0,26390.0,0.2511]
[1693503122710,3.93836604,26391.0,26390.0,0.2511]
[1693503122914,3.93636604,26391.0,26390.0,0.2511]
[1693503123123,3.93436604,26391.0,26390.0,0.2511]
[1693503123324,4.43778057,26391.0,26390.0,0.2511]
[1693503123550,4.46578057,26391.0,26390.0,0.2511]
[1693503123761,4.80656961,26391.0,26390.0,0.2511]
[1693503123937,4.77356961,26391.0,26390.0,0.2511]
[1693503124591,3.45740557,26391.0,26390.0,0.2511]
[1693503124796,2.11444104,26391.0,26390.0,1.20717785]
[1693503125015,2.11444104,26391.0,26390.0,1.86443485]
[1693503125218,0.18207351,26398.0,26392.0,1.236683]
[1693503125219,0.568231,26398.0,26392.0,1.236683]
[1693503125437,0.66432514,26397.0,26393.0,0.53475319]
[1693503125663,0.568256,26397.0,26393.0,1.76523619]
[1693503125931,1.819568,26397.0,26394.0,0.0669]
[1693503126128,1.704867,26395.0,26394.0,0.00028503]
[1693503126531,1.819667,26395.0,26394.0,0.00028503]
[1693503126735,1.91568174,26395.0,26394.0,0.00028503]
[1693503127150,1.91568174,26395.0,26394.0,0.006]
[1693503127342,1.91568174,26395.0,26394.0,0.003]
[1693503127483,1.91568174,26395.0,26390.0,0.2628]
[1693503127683,1.136708,26392.0,26390.0,0.2628]
[1693503128031,1.136708,26392.0,26391.0,0.00028617]
[1693503129094,1.705062,26392.0,26391.0,0.00028617]
[1693503129913,1.706062,26392.0,26391.0,0.00028617]
[1693503130114,1.821862,26392.0,26391.0,0.00728617]
[1693503130341,2.0598823,26392.0,26391.0,0.00728617]
[1693503130546,1.821862,26392.0,26391.0,0.01228617]
[1693503130746,1.91805773,26392.0,26391.0,0.01228617]
[1693503130954,1.821862,26392.0,26391.0,0.012]
[1693503132089,1.973638,26392.0,26391.0,0.012]
[1693503133226,1.973638,26392.0,26391.0,0.01228617]
[1693503133480,1.138708,26392.0,26391.0,0.01228617]
[1693503133684,0.570354,26392.0,26391.0,0.01228617]
[1693503133898,1.138708,26392.0,26391.0,0.01228617]
[1693503140491,0.002,26392.0,26391.0,1.03756202]
[1693503140692,0.002,26392.0,26391.0,2.19371202]
[1693503140910,0.002,26392.0,26391.0,1.63223702]
[1693503141109,0.002,26392.0,26391.0,1.62929702]
[1693503141371,0.002,26392.0,26391.0,1.62869702]
[1693503141575,0.002,26392.0,26391.0,1.62851702]
[1693503141773,0.002,26392.0,26391.0,1.62677702]
[1693503141920,0.002,26392.0,26391.0,1.62395702]
[1693503142130,0.002,26392.0,26391.0,1.62461702]
[1693503142330,0.002,26392.0,26391.0,1.62707702]
[1693503142555,0.002,26392.0,26391.0,1.63187702]
[1693503142758,0.002,26392.0,26391.0,1.62653702]
[1693503142960,0.002,26392.0,26391.0,1.62485702]
[1693503143110,0.002,26392.0,26391.0,1.62323702]
[1693503143318,0.002,26392.0,26391.0,1.05162202]
[1693503143526,0.002,26392.0,26391.0,1.04640202]
[1693503143722,0.002,26392.0,26391.0,1.18157543]
[1693503143934,0.002,26392.0,26391.0,1.06362202]
[1693503144139,0.002,26392.0,26391.0,1.06644202]
[1693503144347,0.002,26392.0,26391.0,1.16482202]
[1693503144558,0.002,26392.0,26391.0,1.73115702]
[1693503144762,0.002,26392.0,26391.0,1.72779702]
[1693503144985,0.002,26392.0,26391.0,1.72923702]
[1693503145191,0.002,26392.0,26391.0,1.72833702]
[1693503145394,0.002,26392.0,26391.0,1.72641702]
[1693503145619,0.002,26392.0,26391.0,0.39996702]
[1693503145620,0.570354,26392.0,26391.0,0.39996702]
[1693503145826,1.22897345,26392.0,26391.0,0.03228617]
[1693503146028,1.91212745,26392.0,26391.0,0.01228617]
[1693503146252,2.04752562,26392.0,26391.0,0.01228617]
[1693503146466,1.91212745,26392.0,26391.0,0.01228617]
[1693503146667,1.95726017,26392.0,26391.0,0.01228617]
[1693503147728,2.09866012,26392.0,26391.0,0.01228617]
[1693503148960,2.32432374,26392.0,26391.0,0.01228617]
[1693503149552,2.14379284,26392.0,26391.0,0.01228617]
[1693503149958,2.14379284,26392.0,26391.0,0.012]
[1693503150737,2.29494608,26392.0,26391.0,0.012]
[1693503150886,2.06928246,26392.0,26391.0,0.012]
[1693503153293,2.36372557,26392.0,26391.0,0.012]
[1693503153775,2.51932557,26392.0,26391.0,0.012]
[1693503154010,2.51732557,26392.0,26389.0,0.020402]
[1693503154255,2.37878987,26392.0,26391.0,0.006]
[1693503154492,2.59001435,26392.0,26391.0,0.006]
[1693503154774,2.92180339,26392.0,26391.0,0.003]
[1693503154989,2.89480339,26392.0,26391.0,0.001]
[1693503155192,2.90280339,26392.0,26391.0,0.002]
[1693503158394,2.53501435,26392.0,26391.0,0.002]
[1693503161030,2.42021435,26392.0,26391.0,0.002]
[1693503162665,2.36021435,26392.0,26391.0,0.002]
[1693503163020,1.52053248,26392.0,26391.0,0.002]
[1693503163903,1.52053248,26392.0,26391.0,0.00228617]
[1693503164317,2.08888648,26392.0,26391.0,0.00228617]
[1693503164526,1.52053248,26392.0,26391.0,0.00228617]
[1693503164734,1.36493248,26392.0,26391.0,0.00228617]
[1693503166154,1.93328648,26392.0,26391.0,0.00228617]
[1693503166553,1.36493248,26392.0,26391.0,0.00228617]
[1693503167008,1.93328648,26392.0,26391.0,0.00228617]
[1693503167529,1.36493248,26392.0,26391.0,0.00228617]
[1693503168371,1.93328648,26392.0,26391.0,0.00228617]
[1693503169296,1.36493248,26392.0,26391.0,0.00228617]
[1693503170395,1.93328648,26392.0,26391.0,0.00215663]
[1693503171574,1.93319253,26392.0,26391.0,0.00215663]
[1693503172328,1.47599546,26392.0,26391.0,0.00215663]
[1693503173094,0.90764146,26392.0,26391.0,0.00215663]
[1693503173284,0.81121698,26392.0,26391.0,0.00215663]
[1693503174063,0.423668,26392.0,26391.0,0.00215663]
[1693503174268,0.992022,26392.0,26391.0,0.00215663]
[1693503174466,1.560376,26392.0,26391.0,0.00215663]
[1693503174910,1.37966493,26392.0,26391.0,0.00215663]
[1693503176495,1.56038632,26392.0,26391.0,0.00215663]
[1693503176848,1.37966493,26392.0,26391.0,0.00215663]
[1693503177587,0.24295693,26392.0,26391.0,0.36983748]
[1693503177811,0.24295693,26392.0,26391.0,0.38983748]
[1693503178351,0.33918724,26392.0,26391.0,0.38983748]
[1693503178562,0.42367411,26392.0,26391.0,0.38983748]
[1693503179578,0.33921231,26392.0,26391.0,0.38983748]
[1693503179996,2.04427431,26392.0,26391.0,0.00215663]
[1693503180449,0.33921231,26392.0,26391.0,0.36983748]
[1693503180581,0.1978871,26392.0,26391.0,0.45721748]
[1693503180778,0.1978871,26392.0,26391.0,0.44209748]
[1693503180987,0.1978871,26392.0,26391.0,0.44028365]
[1693503181185,0.1978871,26392.0,26391.0,0.44148365]
[1693503181550,0.1978871,26392.0,26391.0,0.37512365]
[1693503181752,0.33349587,26392.0,26391.0,0.37512365]
[1693503182123,1.47020387,26392.0,26391.0,0.37512365]
[1693503182306,1.47020387,26392.0,26391.0,0.02028617]
[1693503182307,2.03855787,26392.0,26391.0,0.02028617]
[1693503182509,2.03855787,26392.0,26391.0,0.00028617]
[1693503183401,2.15335787,26392.0,26391.0,0.00028617]
[1693503183626,2.0177491,26392.0,26391.0,0.00028617]
[1693503184037,2.0177491,26392.0,26389.0,0.020402]
[1693503184267,0.09035538,26390.0,26389.0,0.38808285]
[1693503184435,0.65875238,26390.0,26389.0,0.40808285]
[1693503184870,0.65875238,26390.0,26389.0,0.47231678]
[1693503185233,0.79428545,26390.0,26389.0,0.47373678]
[1693503185409,0.70393007,26390.0,26389.0,0.40935678]
[1693503185636,0.70547537,26390.0,26389.0,0.42735678]
[1693503185844,0.70747537,26390.0,26389.0,0.44735678]
[1693503187354,1.27587237,26390.0,26389.0,0.44735678]
[1693503188609,1.27587237,26390.0,26389.0,0.07967593]
[1693503188818,2.28397394,26390.0,26389.0,0.05967593]
[1693503189028,1.99604695,26390.0,26389.0,0.05967593]
[1693503189449,2.22200388,26390.0,26389.0,0.05967593]
[1693503189656,2.22200388,26390.0,26389.0,0.03927393]
[1693503189861,2.13745337,26390.0,26389.0,0.03927393]
[1693503190480,2.02629644,26390.0,26389.0,0.03927393]
[1693503191088,2.02629644,26390.0,26389.0,0.039]
[1693503191694,2.66530516,26390.0,26389.0,0.039]
[1693503191904,2.41397729,26390.0,26389.0,0.039]
[1693503192109,2.71862318,26390.0,26389.0,0.039]
[1693503192322,2.86842618,26390.0,26389.0,0.019]
[1693503192533,3.06133171,26390.0,26389.0,0.019]
[1693503192741,3.42912075,26390.0,26389.0,0.019]
[1693503193594,3.31432075,26390.0,26389.0,0.019]
[1693503193808,3.34632075,26390.0,26389.0,0.003]
[1693503194036,3.04167486,26390.0,26389.0,0.003]
[1693503194297,3.04267486,26390.0,26389.0,0.003]
[1693503194508,2.60178029,26390.0,26382.0,0.086001]
[1693503194712,2.60178029,26390.0,26389.0,0.006]
[1693503194713,2.09496285,26390.0,26389.0,0.006]
[1693503194917,2.30639013,26390.0,26389.0,0.006]
[1693503195119,2.67417917,26390.0,26389.0,0.006]
[1693503195530,2.60217917,26390.0,26382.0,0.16737334]
[1693503195711,0.1148,26383.0,26382.0,0.023301]
[1693503195915,1.251894,26383.0,26382.0,0.023301]
[1693503196695,1.820441,26383.0,26382.0,0.023301]
[1693503196900,1.820441,26383.0,26382.0,0.026301]
[1693503197100,1.820441,26383.0,26382.0,0.023301]
[1693503197298,1.91078426,26383.0,26382.0,0.020301]
[1693503197472,1.137094,26383.0,26382.0,0.020301]
[1693503197671,1.141094,26383.0,26382.0,0.044301]
[1693503197975,1.23543726,26383.0,26382.0,0.069301]
[1693503198185,1.145094,26383.0,26382.0,0.069301]
[1693503199141,1.308294,26383.0,26382.0,0.069301]
[1693503200536,1.303294,26383.0,26382.0,0.069301]
[1693503200772,1.140094,26383.0,26382.0,0.069301]
[1693503200899,1.986641,26383.0,26382.0,0.069301]
[1693503203018,1.303294,26383.0,26382.0,0.069301]
[1693503205682,1.986641,26383.0,26382.0,0.069301]
[1693503205890,2.2421573,26383.0,26382.0,0.069301]
[1693503206305,1.986641,26383.0,26382.0,0.069301]
[1693503206514,1.982641,26383.0,26382.0,0.045301]
[1693503206938,1.983641,26383.0,26382.0,0.053301]
[1693503207145,1.979641,26383.0,26382.0,0.028301]
[1693503207346,1.979641,26383.0,26382.0,0.027301]
[1693503207761,1.980641,26383.0,26382.0,0.035301]
[1693503208116,2.25607203,26383.0,26382.0,0.035301]
[1693503209200,1.980641,26383.0,26382.0,0.035301]
[1693503210093,1.980641,26383.0,26382.0,0.03555165]
[1693503213116,1.980641,26383.0,26382.0,0.03563111]
[1693503214989,1.980641,26383.0,26382.0,0.035301]
[1693503216825,1.134094,26383.0,26382.0,0.035301]
[1693503217098,0.476124,26383.0,26382.0,0.03563112]
[1693503217304,1.044671,26383.0,26382.0,0.03563112]
[1693503220664,1.044671,26383.0,26382.0,0.09953112]
[1693503220849,1.044671,26383.0,26382.0,0.09935112]
[1693503221035,1.044671,26383.0,26382.0,0.03563112]
[1693503222616,1.044671,26383.0,26382.0,0.09953112]
[1693503222726,1.044671,26383.0,26382.0,0.10037112]
[1693503222925,1.044671,26383.0,26382.0,0.10031112]
[1693503223140,1.044671,26383.0,26382.0,0.03563112]
[1693503224145,0.002,26383.0,26382.0,0.40331197]
[1693503224371,0.002,26383.0,26382.0,2.11779517]
[1693503224709,0.22585815,26392.0,26385.0,0.12]
[1693503224870,0.09669608,26391.0,26387.0,1.825377]
[1693503225077,0.09034326,26393.0,26387.0,1.825377]
[1693503225078,0.568335,26393.0,26388.0,0.53475319]
[1693503225278,0.09667469,26392.0,26389.0,0.568417]
[1693503225494,0.09667469,26392.0,26390.0,0.38768085]
[1693503225685,0.09667469,26392.0,26390.0,0.46778085]
[1693503225686,0.18701795,26392.0,26390.0,0.46778085]
[1693503225924,0.21147469,26391.0,26389.0,0.0654]
[1693503226175,1.80186569,26390.0,26387.0,0.07188]
[1693503226458,1.80186569,26390.0,26385.0,0.12]
[1693503226459,0.09667469,26389.0,26388.0,0.02]
[1693503226720,1.91672869,26389.0,26386.0,0.02]
[1693503226962,0.1148,26387.0,26385.0,0.2329]
[1693503227195,1.251766,26386.0,26385.0,0.2299]
[1693503227392,1.136966,26386.0,26383.0,0.07956]
[1693503227599,1.136966,26386.0,26384.0,0.06546]
[1693503227801,1.136966,26386.0,26383.0,0.44964085]
[1693503228013,1.136966,26386.0,26384.0,0.06624]
[1693503228224,1.136966,26386.0,26385.0,0.03]
[1693503228442,1.136966,26386.0,26384.0,0.06744]
[1693503228635,1.136966,26386.0,26384.0,0.07554]
[1693503228842,1.140966,26386.0,26384.0,0.10752]
[1693503229252,1.136966,26386.0,26384.0,0.07734]
[1693503229451,1.140966,26386.0,26384.0,0.10386]
[1693503229658,1.140966,26386.0,26384.0,0.10398]
[1693503230026,0.576483,26386.0,26385.0,0.06998898]
[1693503230232,0.004,26386.0,26385.0,0.49667681]
[1693503230442,0.008,26386.0,26385.0,0.54991681]
[1693503230652,0.008,26386.0,26385.0,0.49450983]
[1693503230858,0.004,26386.0,26385.0,1.07183383]
[1693503231070,0.004,26386.0,26385.0,1.07015383]
[1693503231275,0.004,26386.0,26385.0,1.09859383]
[1693503231479,0.004,26386.0,26385.0,1.09883383]
[1693503231683,0.008,26386.0,26385.0,1.12619383]
[1693503231988,0.008,26386.0,26385.0,1.12463383]
[1693503232255,0.008,26386.0,26385.0,1.12955383]
[1693503232461,0.008,26386.0,26385.0,1.12265383]
[1693503232680,0.008,26386.0,26385.0,1.13243383]
[1693503232888,0.008,26386.0,26385.0,1.85141783]
[1693503233092,0.008,26386.0,26385.0,2.41920183]
[1693503233293,0.008,26386.0,26385.0,1.70951783]
[1693503233497,0.008,26386.0,26385.0,1.71053783]
[1693503233702,0.008,26386.0,26385.0,1.84217783]
[1693503233907,0.008,26386.0,26385.0,1.71191783]
[1693503234132,0.008,26386.0,26385.0,0.53866983]
[1693503234338,0.008,26386.0,26385.0,0.53962983]
[1693503234539,0.008,26386.0,26385.0,0.54766983]
[1693503234746,0.008,26386.0,26385.0,0.54760983]
[1693503234920,0.008,26386.0,26385.0,0.54484983]
[1693503235156,0.008,26386.0,26385.0,0.54640983]
[1693503235361,0.008,26386.0,26385.0,0.54580983]
[1693503235583,0.003,26386.0,26385.0,0.54574983]
[1693503235783,0.003,26386.0,26385.0,0.54586983]
[1693503235957,0.003,26386.0,26385.0,0.54616983]
[1693503236186,0.003,26386.0,26385.0,0.54694983]
[1693503236387,0.003,26386.0,26385.0,0.54646983]
[1693503236592,0.003,26386.0,26385.0,0.54700983]
[1693503236800,0.003,26386.0,26385.0,0.54862983]
[1693503237003,0.003,26386.0,26385.0,0.54832983]
[1693503237204,0.003,26386.0,26385.0,0.54802983]
[1693503237379,0.003,26386.0,26385.0,1.11947383]
[1693503237625,0.003,26386.0,26385.0,2.27514183]
[1693503237829,0.003,26386.0,26385.0,2.65224183]
[1693503238009,0.003,26386.0,26385.0,2.64252183]
[1693503238233,0.003,26386.0,26385.0,2.64132183]
[1693503238423,0.003,26386.0,26385.0,2.63808183]
[1693503238623,0.003,26386.0,26385.0,2.63568183]
[1693503238826,0.003,26386.0,26385.0,1.80261783]
[1693503239027,0.003,26386.0,26385.0,1.80255783]
[1693503239230,0.003,26386.0,26385.0,1.80321783]
[1693503239437,0.003,26386.0,26385.0,1.80297783]
[1693503239647,0.003,26386.0,26385.0,1.80321783]
[1693503239887,0.003,26386.0,26385.0,1.80285783]
[1693503240046,0.003,26386.0,26385.0,1.80297783]
[1693503240242,0.003,26386.0,26385.0,1.70291783]
[1693503240447,0.003,26386.0,26385.0,1.12403383]
[1693503240651,0.003,26386.0,26385.0,1.12589383]
[1693503240851,0.003,26386.0,26385.0,1.12577383]
[1693503241051,0.003,26386.0,26385.0,1.12631383]
[1693503241250,0.003,26386.0,26385.0,1.12427383]
[1693503241428,0.003,26386.0,26385.0,1.12655383]
[1693503241805,0.003,26386.0,26385.0,1.12481383]
[1693503242007,0.003,26386.0,26385.0,1.12451383]
[1693503242318,0.003,26386.0,26385.0,1.12343383]
[1693503242500,0.003,26386.0,26385.0,1.12709383]
[1693503242708,0.003,26386.0,26385.0,1.69601783]
[1693503242865,0.003,26386.0,26385.0,1.81987783]
[1693503243060,0.003,26386.0,26385.0,1.81897783]
[1693503243266,0.003,26386.0,26385.0,1.81951783]
[1693503243870,0.003,26386.0,26385.0,1.81441783]
[1693503244052,0.003,26386.0,26385.0,1.80829783]
[1693503244230,0.003,26386.0,26385.0,1.80313783]
[1693503244432,0.003,26386.0,26385.0,0.52378983]
[1693503244589,0.003,26386.0,26385.0,0.52390983]
[1693503244793,0.003,26386.0,26385.0,0.52510983]
[1693503245004,0.003,26386.0,26385.0,0.52522983]
[1693503245255,0.003,26386.0,26385.0,0.52450983]
[1693503245462,0.003,26386.0,26385.0,0.52468983]
[1693503245636,0.003,26386.0,26385.0,0.52438983]